lending/lending_fUSD_20250114
["ID","MTS","AMOUNT","RATE_DAILY","PERIOD"]
[348907844,1736871041152,-224.70086475,9.958e-05,2]
[348907845,1736871041161,-181.17219127,9.958e-05,2]
[348907846,1736871041170,-5155.07,9.958e-05,2]
[348907847,1736871041179,-2349.38,9.958e-05,2]
[348907849,1736871041189,-522.06148542,9.958e-05,2]
[348907851,1736871041199,-500.0,9.958e-05,2]
[348907853,1736871041210,-603.01,9.958e-05,2]
[348907855,1736871041220,-500.0,9.958e-05,2]
[348907857,1736871041230,-1620.19,9.958e-05,2]
[348907859,1736871041239,-237.0,9.958e-05,2]
[348907861,1736871041248,-237.0,9.958e-05,2]
[348907863,1736871041257,-237.0,9.958e-05,2]
[348907865,1736871041266,-237.0,9.958e-05,2]
[348907867,1736871041276,-237.0,9.958e-05,2]
[348907869,1736871041285,-237.0,9.958e-05,2]
[348907871,1736871041294,-237.0,9.958e-05,2]
[348907873,1736871041304,-237.0,9.958e-05,2]
[348907875,1736871041313,-237.0,9.958e-05,2]
[348907877,1736871041322,-237.0,9.958e-05,2]
[348907879,1736871041331,-237.0,9.958e-05,2]
[348907881,1736871041340,-237.0,9.958e-05,2]
[348907883,1736871041349,-237.0,9.958e-05,2]
[348907885,1736871041358,-237.0,9.958e-05,2]
[348907887,1736871041367,-11226.25,9.959e-05,2]
[348907889,1736871041377,-1592.98,9.959e-05,2]
[348907891,1736871041386,-808.559109,9.959e-05,2]
[348907895,1736871041424,-220.660891,9.959e-05,2]
[348907897,1736871041434,-3058.42,9.959e-05,2]
[348907899,1736871041445,-500.0,9.959e-05,2]
[348907901,1736871041455,-1564.97,9.959e-05,2]
[348907903,1736871041463,-2074.04,9.959e-05,2]
[348907905,1736871041473,-500.0,9.959e-05,2]
[348907907,1736871041482,-1000.0,9.959e-05,2]
[348907909,1736871041491,-500.0,9.965e-05,2]
[348907911,1736871041501,-2904.81,9.965e-05,2]
[348907912,1736871041510,-4220.93,9.965e-05,2]
[348907914,1736871041519,-2444.68,9.965e-05,2]
[348907916,1736871041528,-500.0,9.965e-05,2]
[348907918,1736871041538,-1614.87,9.965e-05,2]
[348907920,1736871041548,-1749.82754987,9.965e-05,2]
[348907923,1736871041571,-2278.47245013,9.965e-05,2]
[348907925,1736871041580,-500.0,9.965e-05,2]
[348907927,1736871041589,-108.68261233,9.965e-05,2]
[348907929,1736871041600,-774.6985844,9.965e-05,2]
[348907931,1736871041611,-735.00880327,9.965e-05,2]
[348907933,1736871041621,-886.17,9.965e-05,2]
[348907935,1736871041630,-500.0,9.965e-05,2]
[348907937,1736871041639,-1130.9,9.965e-05,2]
[348907939,1736871041648,-500.0,9.965e-05,2]
[348907941,1736871041657,-504.03513707,9.965e-05,2]
[348907943,1736871041667,-500.0,9.965e-05,2]
[348907945,1736871041676,-500.0,9.965e-05,2]
[348907947,1736871041685,-156.30471537,9.965e-05,2]
[348907949,1736871041695,-184.62492629,9.965e-05,2]
[348907951,1736871041713,-544.44507371,9.965e-05,2]
[348907953,1736871041722,-1516.25,9.966e-05,2]
[348907955,1736871041731,-1166.86,9.966e-05,2]
[348907957,1736871041740,-866.05,9.966e-05,2]
[348907959,1736871041750,-2203.87,9.966e-05,2]
[348907961,1736871041759,-2397.33,9.966e-05,2]
[348907963,1736871041768,-916.24,9.966e-05,2]
[348907983,1736871042007,-3485.69,9.966e-05,2]
[348907986,1736871042018,-1636.73,9.966e-05,2]
[348907988,1736871042028,-1321.96,9.966e-05,2]
[348907990,1736871042038,-3444.85,9.966e-05,2]
[348907992,1736871042047,-10463.04,9.966e-05,2]
[348907994,1736871042056,-500.0,9.966e-05,2]
[348907996,1736871042066,-1225.56,9.966e-05,2]
[348907997,1736871042077,-1265.15,9.966e-05,2]
[348907999,1736871042087,-1679.51,9.966e-05,2]
[348908001,1736871042097,-1588.58,9.966e-05,2]
[348908003,1736871042106,-4193.47,9.966e-05,2]
[348908005,1736871042116,-2969.84,9.966e-05,2]
[348908007,1736871042125,-1960.51,9.966e-05,2]
[348908009,1736871042135,-3425.16,9.966e-05,2]
[348908012,1736871042144,-683.13,9.966e-05,2]
[348908013,1736871042153,-1742.27,9.966e-05,2]
[348908015,1736871042163,-2066.36,9.966e-05,2]
[348908017,1736871042173,-936.52,9.966e-05,2]
[348908019,1736871042183,-1668.95,9.966e-05,2]
[348908021,1736871042194,-2624.9,9.966e-05,2]
[348908023,1736871042206,-1793.98,9.967e-05,2]
[348908025,1736871042216,-4746.78,9.967e-05,2]
[348908027,1736871042225,-503.64590921,9.967e-05,2]
[348908029,1736871042235,-500.0,9.967e-05,2]
[348908031,1736871042245,-2018.85,9.967e-05,2]
[348908033,1736871042254,-500.0,9.967e-05,2]
[348908035,1736871042263,-500.0,9.967e-05,2]
[348908036,1736871042273,-500.0,9.967e-05,2]
[348908038,1736871042282,-500.0,9.967e-05,2]
[348908040,1736871042291,-3920.54,9.967e-05,2]
[348908042,1736871042301,-500.0,9.967e-05,2]
[348908044,1736871042311,-415.44846154,9.967e-05,2]
[348908046,1736871042320,-500.0,9.967e-05,2]
[348908048,1736871042330,-500.0,9.967e-05,2]
[348908050,1736871042339,-500.0,9.967e-05,2]
[348908052,1736871042348,-618.92565421,9.967e-05,2]
[348908054,1736871042358,-500.0,9.967e-05,2]
[348908056,1736871042367,-626.7299245,9.967e-05,2]
[348908058,1736871042376,-583.25,9.967e-05,2]
[348908060,1736871042385,-500.0,9.967e-05,2]
[348908062,1736871042395,-856.09,9.967e-05,2]
[348908064,1736871042404,-502.24980842,9.967e-05,2]
[348908066,1736871042413,-503.5247854,9.967e-05,2]
[348908068,1736871042423,-503.32273647,9.967e-05,2]
[348908070,1736871042432,-500.0,9.967e-05,2]
[348908072,1736871042444,-1159.82,9.967e-05,2]
[348908074,1736871042453,-500.0,9.967e-05,2]
[348908076,1736871042463,-1932.24,9.967e-05,2]
[348908078,1736871042472,-500.0,9.967e-05,2]
[348908080,1736871042482,-504.13476415,9.967e-05,2]
[348908082,1736871042492,-611.99189917,9.967e-05,2]
[348908084,1736871042501,-526.42,9.967e-05,2]
[348908085,1736871042511,-862.17,9.967e-05,2]
[348908088,1736871042520,-500.0,9.967e-05,2]
[348908089,1736871042530,-500.0,9.967e-05,2]
[348908091,1736871042540,-500.0,9.967e-05,2]
[348908094,1736871042550,-500.0,9.967e-05,2]
[348908095,1736871042560,-1142.27,9.967e-05,2]
[348908097,1736871042570,-500.0,9.967e-05,2]
[348908099,1736871042580,-504.7193388,9.967e-05,2]
[348908101,1736871042589,-500.0,9.967e-05,2]
[348908103,1736871042599,-500.0,9.967e-05,2]
[348908106,1736871042609,-500.0,9.967e-05,2]
[348908107,1736871042619,-521.7326675,9.967e-05,2]
[348908109,1736871042628,-1780.43,9.967e-05,2]
[348908111,1736871042638,-500.0,9.967e-05,2]
[348908113,1736871042647,-500.0,9.967e-05,2]
[348908115,1736871042656,-500.0,9.967e-05,2]
[348908117,1736871042666,-500.0,9.967e-05,2]
[348908119,1736871042675,-500.0,9.967e-05,2]
[348908121,1736871042685,-500.0,9.967e-05,2]
[348908122,1736871042695,-500.0,9.967e-05,2]
[348908124,1736871042704,-500.0,9.967e-05,2]
[348908126,1736871042713,-500.0,9.967e-05,2]
[348908127,1736871042722,-500.0,9.967e-05,2]
[348908129,1736871042731,-500.0,9.967e-05,2]
[348908131,1736871042740,-500.0,9.967e-05,2]
[348908132,1736871042749,-500.0,9.967e-05,2]
[348908134,1736871042759,-504.65113571,9.967e-05,2]
[348908136,1736871042768,-500.0,9.967e-05,2]
[348908138,1736871042777,-1149.97,9.967e-05,2]
[348908140,1736871042787,-500.0,9.967e-05,2]
[348908141,1736871042796,-500.0,9.967e-05,2]
[348908143,1736871042806,-500.0,9.967e-05,2]
[348908145,1736871042815,-500.0,9.967e-05,2]
[348908147,1736871042824,-1199.59,9.967e-05,2]
[348908149,1736871042833,-500.0,9.967e-05,2]
[348908150,1736871042842,-540.32,9.967e-05,2]
[348908152,1736871042852,-1173.44,9.967e-05,2]
[348908153,1736871042861,-500.0,9.967e-05,2]
[348908155,1736871042870,-500.0,9.967e-05,2]
[348908157,1736871042879,-500.0,9.967e-05,2]
[348908159,1736871042888,-500.0,9.967e-05,2]
[348908161,1736871042897,-273.0614986,9.967e-05,2]
[348908162,1736871042907,-189.72468071,9.967e-05,2]
[348908164,1736871042919,-500.0,9.967e-05,2]
[348908166,1736871042930,-500.0,9.967e-05,2]
[348908168,1736871042939,-500.0,9.967e-05,2]
[348908169,1736871042950,-1112.26,9.967e-05,2]
[348908171,1736871042961,-500.0,9.967e-05,2]
[348908173,1736871042970,-500.0,9.967e-05,2]
[348908175,1736871042979,-500.0,9.967e-05,2]
[348908177,1736871042989,-500.0,9.967e-05,2]
[348908178,1736871042998,-500.0,9.967e-05,2]
[348908180,1736871043008,-500.0,9.967e-05,2]
[348908182,1736871043017,-2438.93,9.967e-05,2]
[348908183,1736871043027,-500.0,9.967e-05,2]
[348908185,1736871043036,-500.0,9.967e-05,2]
[348908187,1736871043045,-500.0,9.967e-05,2]
[348908189,1736871043055,-500.0,9.967e-05,2]
[348908191,1736871043066,-500.0,9.967e-05,2]
[348908192,1736871043075,-500.0,9.967e-05,2]
[348908194,1736871043085,-500.0,9.967e-05,2]
[348908196,1736871043094,-500.0,9.967e-05,2]
[348908198,1736871043104,-258.60833354,9.967e-05,2]
[348908200,1736871043113,-549.67865123,9.967e-05,2]
[348908201,1736871043122,-500.0,9.967e-05,2]
[348908203,1736871043131,-1224.09,9.967e-05,2]
[348908205,1736871043141,-500.0,9.967e-05,2]
[348908207,1736871043150,-500.0,9.967e-05,2]
[348908209,1736871043159,-500.0,9.967e-05,2]
[348908211,1736871043168,-500.0,9.967e-05,2]
[348908213,1736871043178,-1303.65,9.967e-05,2]
[348908215,1736871043188,-500.0,9.967e-05,2]
[348908216,1736871043199,-500.0,9.967e-05,2]
[348908219,1736871043210,-500.0,9.967e-05,2]
[348908221,1736871043220,-500.0,9.967e-05,2]
[348908223,1736871043230,-500.0,9.967e-05,2]
[348908225,1736871043239,-500.0,9.967e-05,2]
[348908226,1736871043248,-500.0,9.967e-05,2]
[348908228,1736871043257,-500.0,9.967e-05,2]
[348908230,1736871043267,-603.91,9.967e-05,2]
[348908232,1736871043276,-500.0,9.967e-05,2]
[348908234,1736871043285,-1278.65,9.967e-05,2]
[348908235,1736871043294,-500.0,9.967e-05,2]
[348908237,1736871043303,-460.82138066,9.967e-05,2]
[348908239,1736871043316,-500.0,9.967e-05,2]
[348908241,1736871043326,-500.0,9.967e-05,2]
[348908243,1736871043335,-500.0,9.967e-05,2]
[348908244,1736871043344,-500.0,9.967e-05,2]
[348908248,1736871043353,-1228.06,9.967e-05,2]
[348908251,1736871043362,-500.0,9.967e-05,2]
[348908253,1736871043371,-241.23736884,9.967e-05,2]
[348908255,1736871043381,-500.0,9.967e-05,2]
[348908257,1736871043390,-500.0,9.967e-05,2]
[348908259,1736871043400,-500.0,9.967e-05,2]
[348908261,1736871043409,-500.0,9.967e-05,2]
[348908262,1736871043418,-500.0,9.967e-05,2]
[348908264,1736871043427,-500.0,9.967e-05,2]
[348908266,1736871043437,-292.19,9.967e-05,2]
[348908268,1736871043447,-510.76628654,9.967e-05,2]
[348908270,1736871043457,-1408.95,9.967e-05,2]
[348908271,1736871043467,-500.0,9.967e-05,2]
[348908274,1736871043476,-500.0,9.967e-05,2]
[348908276,1736871043489,-500.0,9.967e-05,2]
[348908279,1736871043500,-500.0,9.967e-05,2]
[348908281,1736871043509,-500.0,9.967e-05,2]
[348908283,1736871043519,-908.24,9.967e-05,2]
[348908285,1736871043529,-500.0,9.967e-05,2]
[348908287,1736871043538,-500.0,9.967e-05,2]
[348908289,1736871043547,-500.0,9.967e-05,2]
[348908290,1736871043556,-500.0,9.967e-05,2]
[348908293,1736871043566,-500.0,9.967e-05,2]
[348908295,1736871043575,-500.0,9.967e-05,2]
[348908297,1736871043584,-507.96790213,9.967e-05,2]
[348908299,1736871043594,-1406.37,9.967e-05,2]
[348908301,1736871043603,-1171.53,9.967e-05,2]
[348908303,1736871043612,-500.0,9.967e-05,2]
[348908305,1736871043621,-884.27,9.967e-05,2]
[348908307,1736871043631,-500.0,9.967e-05,2]
[348908308,1736871043641,-500.0,9.967e-05,2]
[348908310,1736871043650,-235.49973735,9.967e-05,2]
[348908312,1736871043659,-500.0,9.967e-05,2]
[348908314,1736871043669,-500.0,9.967e-05,2]
[348908316,1736871043678,-647.63,9.967e-05,2]
[348908318,1736871043687,-280.2460035,9.967e-05,2]
[348908320,1736871043698,-500.0,9.967e-05,2]
[348908321,1736871043707,-500.0,9.967e-05,2]
[348908323,1736871043717,-500.0,9.967e-05,2]
[348908325,1736871043726,-1113.11,9.967e-05,2]
[348908327,1736871043737,-514.47962162,9.967e-05,2]
[348908329,1736871043746,-991.47,9.967e-05,2]
[348908331,1736871043755,-500.0,9.967e-05,2]
[348908333,1736871043764,-500.0,9.967e-05,2]
[348908335,1736871043773,-500.0,9.967e-05,2]
[348908336,1736871043782,-1161.34,9.967e-05,2]
[348908338,1736871043791,-1071.23,9.967e-05,2]
[348908340,1736871043801,-789.98,9.967e-05,2]
[348908342,1736871043810,-316.23078733,9.967e-05,2]
[348908344,1736871043820,-504.2774331,9.967e-05,2]
[348908346,1736871043832,-500.0,9.967e-05,2]
[348908348,1736871043842,-319.34410557,9.967e-05,2]
[348908350,1736871043851,-500.0,9.967e-05,2]
[348908352,1736871043861,-1106.63,9.967e-05,2]
[348908354,1736871043870,-500.0,9.967e-05,2]
[348908356,1736871043879,-303.61337613,9.967e-05,2]
[348908357,1736871043888,-500.0,9.967e-05,2]
[348908359,1736871043898,-1112.53,9.967e-05,2]
[348908361,1736871043907,-580.34824267,9.967e-05,2]
[348908363,1736871043918,-500.0,9.967e-05,2]
[348908365,1736871043929,-500.0,9.967e-05,2]
[348908367,1736871043939,-500.0,9.967e-05,2]
[348908369,1736871043949,-1838.88,9.967e-05,2]
[348908371,1736871043960,-932.16,9.967e-05,2]
[348908372,1736871043969,-500.0,9.967e-05,2]
[348908374,1736871043979,-500.0,9.967e-05,2]
[348908376,1736871043988,-500.0,9.967e-05,2]
[348908378,1736871043999,-500.0,9.967e-05,2]
[348908380,1736871044008,-500.0,9.967e-05,2]
[348908382,1736871044019,-500.0,9.967e-05,2]
[348908384,1736871044028,-500.0,9.967e-05,2]
[348908386,1736871044037,-500.0,9.967e-05,2]
[348908387,1736871044047,-500.0,9.967e-05,2]
[348908389,1736871044057,-500.0,9.967e-05,2]
[348908391,1736871044066,-976.4,9.967e-05,2]
[348908393,1736871044075,-500.0,9.967e-05,2]
[348908395,1736871044084,-1337.66,9.967e-05,2]
[348908397,1736871044094,-500.0,9.967e-05,2]
[348908399,1736871044103,-256.79585844,9.967e-05,2]
[348908400,1736871044112,-500.0,9.967e-05,2]
[348908402,1736871044122,-500.0,9.967e-05,2]
[348908404,1736871044131,-758.83,9.967e-05,2]
[348908406,1736871044141,-572.39,9.967e-05,2]
[348908408,1736871044150,-500.0,9.967e-05,2]
[348908410,1736871044160,-500.0,9.967e-05,2]
[348908412,1736871044169,-500.0,9.967e-05,2]
[348908413,1736871044179,-1232.64,9.967e-05,2]
[348908415,1736871044188,-500.0,9.967e-05,2]
[348908417,1736871044199,-500.0,9.967e-05,2]
[348908419,1736871044210,-500.0,9.967e-05,2]
[348908421,1736871044219,-500.0,9.967e-05,2]
[348908423,1736871044229,-1161.72,9.967e-05,2]
[348908425,1736871044238,-500.0,9.967e-05,2]
[348908427,1736871044247,-500.0,9.967e-05,2]
[348908429,1736871044256,-1402.03,9.967e-05,2]
[348908431,1736871044266,-500.0,9.967e-05,2]
[348908433,1736871044275,-500.0,9.967e-05,2]
[348908435,1736871044284,-500.0,9.967e-05,2]
[348908437,1736871044293,-500.0,9.967e-05,2]
[348908439,1736871044303,-500.0,9.967e-05,2]
[348908441,1736871044312,-500.0,9.967e-05,2]
[348908443,1736871044321,-1098.11,9.967e-05,2]
[348908444,1736871044330,-3138.43,9.967e-05,2]
[348908445,1736871044339,-500.0,9.967e-05,2]
[348908446,1736871044349,-500.0,9.967e-05,2]
[348908447,1736871044358,-986.15,9.967e-05,2]
[348908448,1736871044367,-500.0,9.967e-05,2]
[348908449,1736871044377,-659.72,9.967e-05,2]
[348908450,1736871044386,-500.0,9.967e-05,2]
[348908451,1736871044396,-500.0,9.967e-05,2]
[348908452,1736871044405,-500.0,9.967e-05,2]
[348908453,1736871044415,-500.0,9.967e-05,2]
[348908454,1736871044424,-500.0,9.967e-05,2]
[348908455,1736871044434,-500.0,9.967e-05,2]
[348908456,1736871044444,-500.0,9.967e-05,2]
[348908457,1736871044453,-504.40494033,9.967e-05,2]
[348908458,1736871044463,-500.0,9.967e-05,2]
[348908459,1736871044472,-1032.34,9.967e-05,2]
[348908460,1736871044482,-3452.91,9.967e-05,2]
[348908461,1736871044491,-500.0,9.967e-05,2]
[348908462,1736871044500,-1606.61,9.967e-05,2]
[348908464,1736871044509,-500.0,9.967e-05,2]
[348908466,1736871044525,-500.0,9.967e-05,2]
[348908468,1736871044539,-459.15574015,9.967e-05,2]
[348908470,1736871044549,-500.0,9.967e-05,2]
[348908472,1736871044559,-1003.31,9.967e-05,2]
[348908474,1736871044569,-979.54,9.967e-05,2]
[348908476,1736871044579,-756.85,9.967e-05,2]
[348908479,1736871044589,-1623.91,9.967e-05,2]
[348908481,1736871044599,-4038.71,9.967e-05,2]
[348908483,1736871044608,-500.0,9.967e-05,2]
[348908485,1736871044619,-500.0,9.967e-05,2]
[348908487,1736871044629,-507.27,9.967e-05,2]
[348908489,1736871044639,-500.0,9.967e-05,2]
[348908491,1736871044649,-500.0,9.967e-05,2]
[348908493,1736871044659,-1966.64,9.967e-05,2]
[348908495,1736871044668,-500.0,9.967e-05,2]
[348908496,1736871044678,-500.0,9.967e-05,2]
[348908499,1736871044688,-504.77354122,9.967e-05,2]
[348908501,1736871044700,-986.12,9.967e-05,2]
[348908503,1736871044709,-500.0,9.967e-05,2]
[348908505,1736871044719,-1121.12,9.968e-05,2]
[348908507,1736871044729,-500.0,9.968e-05,2]
[348908509,1736871044741,-2873.51,9.968e-05,2]
[348908511,1736871044750,-2691.6,9.968e-05,2]
[348908513,1736871044760,-738.18529382,9.971e-05,2]
[348908515,1736871044770,-500.0,9.973e-05,2]
[348908517,1736871044779,-738.18529382,9.975e-05,2]
[348908519,1736871044789,-153.0,9.977e-05,2]
[348908521,1736871044802,-153.0,9.977e-05,2]
[348908523,1736871044811,-153.0,9.977e-05,2]
[348908525,1736871044820,-153.0,9.977e-05,2]
[348908527,1736871044830,-153.0,9.977e-05,2]
[348908529,1736871044840,-153.0,9.977e-05,2]
[348908531,1736871044850,-153.0,9.977e-05,2]
[348908533,1736871044859,-153.0,9.977e-05,2]
[348908535,1736871044869,-153.0,9.977e-05,2]
[348908537,1736871044878,-153.0,9.977e-05,2]
[348908539,1736871044888,-153.0,9.977e-05,2]
[348908541,1736871044898,-153.0,9.977e-05,2]
[348908543,1736871044908,-153.0,9.977e-05,2]
[348908545,1736871044920,-153.0,9.977e-05,2]
[348908547,1736871044930,-237.0,9.979e-05,2]
[348908549,1736871044940,-237.0,9.979e-05,2]
[348908551,1736871044951,-237.0,9.979e-05,2]
[348908553,1736871044963,-237.0,9.979e-05,2]
[348908555,1736871044972,-237.0,9.979e-05,2]
[348908557,1736871044982,-237.0,9.979e-05,2]
[348908559,1736871044993,-237.0,9.979e-05,2]
[348908561,1736871045005,-237.0,9.979e-05,2]
[348908563,1736871045014,-237.0,9.979e-05,2]
[348908565,1736871045024,-237.0,9.979e-05,2]
[348908567,1736871045034,-237.0,9.979e-05,2]
[348908569,1736871045044,-237.0,9.979e-05,2]
[348908571,1736871045053,-237.0,9.979e-05,2]
[348908573,1736871045063,-237.0,9.979e-05,2]
[348908575,1736871045073,-275.64014822,9.981e-05,2]
[348908577,1736871045083,-275.64014822,9.981e-05,2]
[348908579,1736871045094,-275.64014822,9.982e-05,2]
[348908581,1736871045103,-738.18529382,9.982e-05,2]
[348908583,1736871045114,-3982.137,9.985e-05,2]
[348908585,1736871045124,-2902.849,9.985e-05,2]
[348908587,1736871045134,-150.0,9.985e-05,2]
[348908589,1736871045144,-1104.0,9.985e-05,2]
[348908591,1736871045154,-275.64014822,9.985e-05,2]
[348908593,1736871045163,-153.0,9.988e-05,2]
[348908595,1736871045173,-153.0,9.988e-05,2]
[348908597,1736871045183,-153.0,9.988e-05,2]
[348908599,1736871045194,-153.0,9.988e-05,2]
[348908601,1736871045206,-153.0,9.988e-05,2]
[348908603,1736871045216,-153.0,9.988e-05,2]
[348908605,1736871045226,-153.0,9.988e-05,2]
[348908607,1736871045236,-153.0,9.988e-05,2]
[348908609,1736871045246,-153.0,9.988e-05,2]
[348908611,1736871045256,-153.0,9.988e-05,2]
[348908613,1736871045265,-153.0,9.988e-05,2]
[348908615,1736871045275,-153.0,9.988e-05,2]
[348908617,1736871045284,-153.0,9.988e-05,2]
[348908619,1736871045294,-237.0,9.99e-05,2]
[348908621,1736871045303,-237.0,9.99e-05,2]
[348908623,1736871045312,-237.0,9.99e-05,2]
[348908625,1736871045322,-237.0,9.99e-05,2]
[348908627,1736871045332,-237.0,9.99e-05,2]
[348908629,1736871045341,-237.0,9.99e-05,2]
[348908631,1736871045351,-237.0,9.99e-05,2]
[348908633,1736871045361,-237.0,9.99e-05,2]
[348908635,1736871045371,-237.0,9.99e-05,2]
[348908637,1736871045381,-237.0,9.99e-05,2]
[348908639,1736871045396,-237.0,9.99e-05,2]
[348908641,1736871045406,-237.0,9.99e-05,2]
[348908643,1736871045415,-237.0,9.99e-05,2]
[348908645,1736871045425,-1996.259,9.992e-05,2]
[348908648,1736871045435,-1643.2396714,9.992e-05,2]
[348908650,1736871045447,-847.4477739,9.992e-05,2]
[348908652,1736871045458,-175.6516435,9.992e-05,2]
[348908654,1736871045468,-275.64014822,9.993e-05,2]
[348908656,1736871045478,-1448.3723019,9.993e-05,2]
[348908658,1736871045488,-175.6516435,9.993e-05,2]
[348908660,1736871045498,-738.18529382,9.993e-05,2]
[348908662,1736871045508,-738.18529382,9.994e-05,2]
[348908664,1736871045518,-738.18529382,9.996e-05,2]
[348908666,1736871045527,-3648.35,9.998e-05,2]
[348908668,1736871045537,-500.0,9.999e-05,2]
[348908670,1736871045547,-500.0,9.999e-05,2]
[348908672,1736871045557,-1024.77,9.999e-05,2]
[348908674,1736871045568,-520.0,0.0001,2]
[348908676,1736871045578,-760996.91151199,0.0001,2]
[348908678,1736871045587,-1500.0,0.0001,2]
[348908680,1736871045597,-1500.0,0.0001,2]
[348908682,1736871045607,-1500.0,0.0001,2]
[348908684,1736871045617,-1500.0,0.0001,2]
[348908686,1736871045627,-1500.0,0.0001,2]
[348908688,1736871045637,-1500.0,0.0001,2]
[348908690,1736871045647,-1500.0,0.0001,2]
[348908692,1736871045656,-1500.0,0.0001,2]
[348908694,1736871045666,-1500.0,0.0001,2]
[348908696,1736871045676,-1500.0,0.0001,2]
[348908698,1736871045686,-454.3,0.0001,2]
[348908700,1736871045697,-1000.0,0.0001,2]
[348908702,1736871045707,-150.0,0.0001,2]
[348908704,1736871045716,-5337.96154634,0.0001,2]
[348908706,1736871045726,-7629.49915338,0.0001,2]
[348908708,1736871045735,-2000.0,0.0001,2]
[348908711,1736871045745,-1000.0,0.0001,2]
[348908714,1736871045755,-200.68377384,0.0001,2]
[348908716,1736871045765,-250.0,0.0001,2]
[348908718,1736871045774,-200.0,0.0001,2]
[348908720,1736871045784,-649457.52348823,0.0001,2]
[348908722,1736871045795,-4930189.67515618,0.0001,2]
[348908724,1736871045805,-191208.03,0.0001,2]
[348908726,1736871045815,-190.476482,0.0001,2]
[348908728,1736871045825,-176.93821022,0.0001,2]
[348908730,1736871045834,-1000.0,0.0001,2]
[348908732,1736871045844,-5275.69499463,0.0001,4]
[348908734,1736871045854,-1082.96117263,0.0001,4]
[348908738,1736871045863,-151.0,0.0001,2]
[348908739,1736871045874,-152.17950915,0.0001,2]
[348908741,1736871045884,-206.0,0.0001,2]
[348908743,1736871045893,-210.0,0.0001,2]
[348908745,1736871045903,-723910.53,0.0001,2]
[348908747,1736871045913,-500.0,0.0001,2]
[348908749,1736871045926,-1982.02132266,0.0001,2]
[348908751,1736871045936,-17305.81,0.0001,2]
[348908754,1736871045947,-133332.05098946,0.0001,2]
[348908755,1736871045959,-193.94435139,0.0001,2]
[348908758,1736871045969,-3000.0,0.0001,2]
[348908760,1736871045979,-179.9424718,0.0001,2]
[348908762,1736871045989,-185.55550233,0.0001,2]
[348908764,1736871046001,-179.9424718,0.0001,2]
[348908765,1736871046011,-179.9424718,0.0001,2]
[348908768,1736871046022,-30359.28848627,0.0001,2]
[348908770,1736871046032,-8151.34415339,0.0001,2]
[348908772,1736871046042,-1760.13569863,0.0001,2]
[348908774,1736871046052,-152.17950909,0.00010057,2]
[348908801,1736871046331,-1000.0,0.00010092,2]
[348908803,1736871046341,-2856.47,0.00010131,2]
[348908805,1736871046351,-500.0,0.00010131,2]
[348908807,1736871046362,-500.0,0.00010131,2]
[348908809,1736871046372,-500.0,0.00010131,2]
[348908811,1736871046381,-758.96,0.00010131,2]
[348908813,1736871046391,-500.0,0.00010131,2]
[348908815,1736871046401,-500.0,0.00010131,2]
[348908817,1736871046411,-500.0,0.00010131,2]
[348908819,1736871046421,-500.0,0.00010131,2]
[348908821,1736871046431,-500.0,0.00010131,2]
[348908823,1736871046440,-500.0,0.00010131,2]
[348908825,1736871046451,-500.0,0.00010131,2]
[348908827,1736871046461,-909.28,0.00010131,2]
[348908829,1736871046471,-500.0,0.00010131,2]
[348908831,1736871046480,-1419.13,0.00010131,2]
[348908833,1736871046491,-500.0,0.00010131,2]
[348908835,1736871046500,-580.83,0.00010131,2]
[348908837,1736871046510,-1079.36,0.00010131,2]
[348908839,1736871046519,-500.0,0.00010131,2]
[348908841,1736871046529,-1965.67,0.00010131,2]
[348908843,1736871046539,-781.46,0.00010131,2]
[348908845,1736871046550,-770.01,0.00010131,2]
[348908848,1736871046560,-846.81,0.00010131,2]
[348908850,1736871046570,-500.0,0.00010131,2]